[Event "21st RLP-Seniors Open 2024"]
[Site "Altenkirchen Ww"]
[Date "2024.09.03"]
[Round "1.8"]
[White "Ranker, Klemens"]
[Black "Krueger, Erich"]
[Result "0-1"]
[Annotator "TA"]
[ECO "B13"]
[WhiteElo "1872"]
[BlackElo "2085"]
[PlyCount "60"]
[EventDate "2024.09.02"]
[EventType "swiss"]
[EventCountry "GER"]
[SourceTitle "playchess.com"]
[Source "ChessBase"]
[SourceQuality "1"]
[TimeControl "40/5400+30:1800+30"]

{[%evp 14,60,18,-12,-9,-12,0,0,0,0,0,-10,0,0,0,-27,-24,-20,-21,-65,-27,-23,-21,-66,-75,-85,-45,-78,-61,-72,-66,-85,-51,-143,-122,-135,-78,-127,-112,-113,-123,-120,-119,-495,-496,-459,-495,-486,-481]} 1. e4 {[%emt 0:00:04]} c6 {[%emt 0:00:09]} 2. d4 {[%emt 0:00:17]} d5 {[%emt 0:00:07]} 3. exd5 {[%emt 0:00:08]} cxd5 {[%emt 0:00:10]} 4. Bd3 {[%emt 0:00:21]} Nf6 {[%emt 0:00:27]} 5. Nf3 {[%emt 0:00:30]} Bg4 {[%emt 0:00:48]} 6. O-O {[%emt 0:00:08]} Nc6 {[%emt 0:00:17]} 7. c3 {[%emt 0:00:07]} e6 {[%emt 0:00:22]} 8. Re1 {[%emt 0:00:59]} Bd6 {[%emt 0:01:52]} 9. Bg5 {[%emt 0:01:30]} Qc7 {[%emt 0:02:05][%cal Od6h2]} 10. h3 {[%emt 0:00:11]} Bh5 {[%emt 0:00:28] The position is equal.} 11. Nbd2 {[%emt 0:01:26]} O-O {[%emt 0:02:34]} 12. Qb3 {[%emt 0:06:01]} Bg6 {[%emt 0:04:31]} 13. Bxg6 {[%emt 0:02:53]} hxg6 {[%emt 0:00:14]} 14. Re2 {[%emt 0:01:56] [#]} b5 $1 {[%emt 0:04:50]} 15. Rc1 {[%emt 0:03:59]} (15. Qc2 Rfc8) 15... a5 {[%emt 0:11:43]} 16. a4 {[%emt 0:02:51]} bxa4 {[%emt 0:10:05]} 17. Qxa4 {[%emt 0:00:56]} Rfb8 {[%emt 0:01:35]} 18. Bxf6 {[%emt 0:03:35]} gxf6 {[%emt 0:00:26]} 19. Nf1 {[%emt 0:00:35]} Rb6 {[%emt 0:07:31]} 20. Rcc2 {[%emt 0:01:09]} Rab8 {[%emt 0:01:21]} 21. Ne3 {[%emt 0:01:45]} Qb7 {[%emt 0:01:05]} 22. g3 {[%emt 0:04:01]} f5 {[%emt 0:03:28]} (22... Qa6 {looks sharper.} 23. Ng4 Kg7 24. Kg2 Rb3) 23. Nd1 {[%emt 0:02:50]} (23. Ng2 $15) 23... Kg7 {[%emt 0:03:09]} 24. Kg2 {[%emt 0:01:16]} Qa6 {[%emt 0:01:49]} ({Black should try} 24... f4 25. g4 Qd7) 25. Kg1 {[%emt 0:10:31]} (25. Ne3 $142) 25... Ne7 {[%emt 0:04:06]} 26. Kg2 {[%emt 0:01:30]} Ng8 {[%emt 0:00:13]} 27. Ne5 {[%emt 0:14:18]} Nf6 {[%emt 0:00:40][%cal Of5f4]} 28. Nd7 $2 {[%emt 0:09:01][%mdl 8192]} (28. Qa1 $17) 28... Nxd7 $19 {[%emt 0:00:19] Black is clearly winning.} 29. Qxd7 {[%emt 0:00:04]} a4 {[%emt 0:09:09] [#] Strongly threatening ...R6b7.} 30. Rxe6 {[%emt 0:05:39]} R8b7 {[%emt 0:00:30] Weighted Error Value: White=0.45/Black=0.11 (very precise) .  Loses game:     	White=1     	---        Mistake:       	White=2     	Black=1      Inaccurate:     	White=4     	Black=3      OK:         	White=8     	Black=7      Best:        	White=1     	Black=2} 0-1